Cogmind - Beta 15 @@@ ROGUE MODE // 2025.05.26 @ 15:46:28 Player: Man of Plasma Result: Destroyed by G-50 Soldier with Heavy Laser Performance ------------- Evolutions (2) 1000 Regions Visited (5) 1000 Robots Destroyed (51) 255 Value Destroyed (1417) 1417 Prototype IDs (11) 220 Alien Tech Used (0) 0 Bonus (101) 101 TOTAL SCORE: 3993 Bonus ------- High Alert Combat Kills 8 Follower Combat Kills 93 Cogmind --------- Core Integrity 0/550 Matter 263/300 Energy 100/100 System Corruption 18% Temperature Cool (9) Movement Core (200) Ox3 Location -8/Materials Parts ------- > --- POWER (1) -------- (None) > --- PROPULSION (4) --- (None) > --- UTILITY (4) ------ Medium Storage Unit > --- WEAPON (2) ------- (None) > --- INVENTORY (10) --- Improved Flight Unit Improved Flight Unit Improved Heat Sink Small Storage Unit Energy Filter Drone Bay (1/2) Precision Beam Rifle High-powered Field Laser Assault Cannon Mini Grenade Launcher Peak State ------------ > --- POWER ------------ Nuclear Core > --- PROPULSION ------- Improved Flight Unit Improved Flight Unit Improved Flight Unit Improved VTOL Module > --- UTILITY ---------- Medium Storage Unit Weight Redist. System Improved Sensor Array Experimental Targeting Computer > --- WEAPON ----------- High-powered Field Laser Assault Cannon > --- INVENTORY -------- Improved Flight Unit Improved Flight Unit Improved Heat Sink Small Storage Unit Energy Filter Drone Bay Precision Beam Rifle Mini Grenade Launcher Mining Laser [Rating: 38] Favorites ----------- Power Light Ion Engine Engine Light Ion Engine Power Core Light Nuclear Core Propulsion Improved Flight Unit Treads Light Treads Flight Unit Improved Flight Unit Utility Sensor Array Device Sensor Array Storage Medium Storage Unit Processor Experimental Targeting Computer Protection Medium Armor Plating Weapon EM Shotgun Energy Gun EM Shotgun Energy Cannon Advanced Beam Cannon Ballistic Gun Improved Assault Rifle Ballistic Cannon Assault Cannon Launcher Grenade Launcher Special Weapon Mining Laser Build | -11 -10 -10 -9 -9 -8 ------- Run | Yrd Mat Min Mat Sto Mat Slots Evolved 4 | . . . 2 . 2 Power . | . . . . . . Propulsion 2 | . . . 1 . 1 Utility 2 | . . . 1 . 1 Weapon . | . . . . . . Parts Attached 50 | 7 8 2 10 10 13 Power 9 | 2 . 1 . 5 1 Engine 7 | 2 . . . 5 . Core 2 | . . 1 . . 1 Reactor . | . . . . . . Propulsion 10 | 1 1 . 4 1 3 Treads 3 | 1 1 . 1 . . Leg . | . . . . . . Wheel . | . . . . . . Hover . | . . . . . . Flight 7 | . . . 3 1 3 Utility 11 | 1 3 . 4 1 2 Device 6 | . 2 . 2 . 2 Storage 3 | 1 1 . 1 . . Processor 1 | . . . . 1 . Hackware . | . . . . . . Protection 1 | . . . 1 . . Artifact . | . . . . . . Weapon 20 | 3 4 1 2 3 7 Energy Gun 10 | 1 3 . 1 . 5 Energy Cannon 2 | . . . 1 1 . Ballistic Gun 5 | 2 . 1 . 2 . Ballistic Cannon 1 | . . . . . 1 Launcher 1 | . 1 . . . . Special Weapon 1 | . . . . . 1 Impact Weapon . | . . . . . . Slashing Weapon . | . . . . . . Piercing Weapon . | . . . . . . Special Melee Weapon . | . . . . . . Unidentified Prototypes 11 | . . . 1 4 6 Corrupted Parts 1 | . . 1 . . . System Corruption 2 | . . 2 . . . Parts Lost 12 | . . 2 . . 10 Power 1 | . . . . . 1 Propulsion 4 | . . . . . 4 Utility 3 | . . . . . 3 Weapon 4 | . . 2 . . 2 Highest Loss Streak 10 | . . 2 . . 10 To Critical Strikes . | . . . . . . Average Backups 7 | 1 6 8 5 7 8 Power 1 | . 1 1 1 . . Propulsion . | . . 1 . 2 1 Utility 2 | . 2 3 3 2 3 Weapon 2 | . 2 2 1 1 2 Tool/Special . | . . . . . . Unused Backups 6 | . . . . . 6 Power . | . . . . . . Propulsion . | . . . . . . Utility 3 | . . . . . 3 Weapon 3 | . . . . . 3 Tool/Special . | . . . . . . Average Slot Usage (%) 93 | . 87 95 96 96 90 Engine 8 | . 14 14 . 9 5 Core 3 | . . . 11 1 2 Treads 14 | . 20 28 30 . . Flight 14 | . . . 1 30 33 Device 14 | . 12 14 14 16 15 Storage 11 | . 14 14 11 10 9 Processor 2 | . . . . 5 7 Protection 1 | . . . 5 . . Energy Gun 9 | . 24 20 4 . 6 Energy Cannon 4 | . . . 6 11 1 Ballistic Gun 6 | . . 4 11 10 4 Peak Build Rating 38 | 5 10 10 21 27 38 Average Rating 17 | 3 8 9 13 23 32 On Entrance 12 | . 5 10 9 21 27 Naked Turns . | . . . . . . Heaviest Build 30 | 12 20 20 30 20 25 Greatest Support 60 | 20 40 40 60 21 26 Greatest Overweight (x) 5 | . . . 5 . 1 Average Overweight (x) . | . . . . . . Largest Inventory Capacity 10 | 8 10 10 10 10 10 Average Capacity 9 | 6 9 10 9 7 9 Most Carried 10 | 2 9 9 10 8 10 Average Carried 7 | 1 7 8 5 7 8 Final Capacity 10 | 8 10 10 8 8 10 Final Carried 10 | 2 9 7 7 8 10 Class Distribution -------------------- 80% | Mutant 11% | Sprinter 5% | Scavenger-Mutant Dominant Class ---------------- Mutant | -10/Materials Mutant | -10/Mines Mutant | -9/Materials Mutant | -9/Storage Sprinter | -8/Materials Resources | -11 -10 -10 -9 -9 -8 ----------- Run | Yrd Mat Min Mat Sto Mat Matter Collected 1184 | 201 179 31 179 441 153 Remotely . | . . . . . . Salvage Created 2353 | . 475 94 336 1011 437 Parts 130 | . 22 3 13 69 23 Haulers Intercepted 9 | . 2 . 1 4 2 Recyclers Shooed 5 | . 4 . 1 . . Parts Field Recycled . | . . . . . . Retrieved Matter . | . . . . . . Parts Self-Destructed . | . . . . . . Prevented . | . . . . . . Kills | -11 -10 -10 -9 -9 -8 ------- Run | Yrd Mat Min Mat Sto Mat Combat Hostiles Destroyed 30 | . 6 2 2 14 6 Guns 17 | . 4 2 2 5 4 Cannons 11 | . . . . 9 2 AOE 2 | . 2 . . . . Classes Destroyed 8 | . 6 . 1 . 1 Worker 2 | . 1 . . . 1 Builder 2 | . 1 . . 1 . Hauler 9 | . 2 . 1 4 2 Recycler 4 | . 2 . 2 . . Watcher 4 | . 1 . 1 2 . Grunt 13 | . 6 2 . 4 1 Sentry 16 | . . . 2 10 4 Hunter 1 | . . . . . 1 Best Kill Streak 8 | . 8 2 2 5 5 Combat Bots Only 5 | . 3 2 1 5 3 Max Kills in Single Turn 3 | . 3 1 1 2 2 Gunslinging . | . . . . . . Exploded 1 | . 1 . . . . Melee . | . . . . . . Uniques/NPCs Destroyed . | . . . . . . Combat | -11 -10 -10 -9 -9 -8 -------- Run | Yrd Mat Min Mat Sto Mat Hostile Shots Fired 200 | . 17 8 32 44 99 Missed 64 | . 6 . 10 18 30 Hits 136 | . 11 8 22 26 69 Melee 2 | . . . . 2 . Projectile 134 | . 11 8 22 24 69 Critical Strikes 10 | . 1 . 1 3 5 Damage Taken 2522 | . 158 135 315 456 1458 Core 774 | . 58 . 45 109 562 Absorbed by Shields . | . . . . . . Regen/Repaired (Parts) 246 | . . . 129 117 . Core Remaining (%) 79 | 100 . 76 . 61 . Volleys Fired 114 | . 14 6 24 42 28 Largest 2 | . 2 2 2 2 2 Hottest 161 | . 90 90 91 98 161 Shots Fired 204 | . 27 9 40 79 49 Gun 134 | . 23 9 31 36 35 Cannon 57 | . . . 9 37 11 Launcher 10 | . 4 . . 6 . Special 3 | . . . . . 3 Kinetic 81 | . . 2 24 36 19 Thermal 75 | . . . 16 37 22 Explosive 10 | . 4 . . 6 . Electromagnetic 38 | . 23 7 . . 8 Robot Hit Streak 12 | . 6 9 7 12 12 Robot Miss Streak 5 | . 5 1 3 2 2 Penetration Max . | . . . . . . Secondary Targets . | . . . . . . Shots Hit Robots 129 | . 17 8 27 48 29 Core Hits 85 | . 28 6 9 25 17 Critical Kills . | . . . . . . Critical Parts Destroyed . | . . . . . . Critical Strikes 2 | . . . . . 2 Burn 1 | . . . . . 1 Blast 1 | . . . . . 1 Melee Attacks . | . . . . . . Impact . | . . . . . . Slashing . | . . . . . . Piercing . | . . . . . . Sneak Attacks . | . . . . . . Combat Hostiles . | . . . . . . Follow-up Attacks . | . . . . . . Damage Inflicted 2785 | . 659 154 462 899 611 Guns 1401 | . 236 122 298 343 402 Cannons 868 | . . . 164 539 165 Explosions 494 | . 414 32 . 17 31 Melee . | . . . . . . Ramming 22 | . 9 . . . 13 Kinetic 830 | . . 13 235 343 239 Thermal 1008 | . . 32 227 539 210 Explosive 431 | . 414 . . 17 . Electromagnetic 494 | . 236 109 . . 149 Impact . | . . . . . . Slashing . | . . . . . . Piercing . | . . . . . . Highest Corruption 18 | . . 2 . . 18 Average Corruption 8 | . . 2 . . 8 Corruption Purged . | . . . . . . Corruption Blocked . | . . . . . . Effects 6 | . . . . . 6 Message Errors 2 | . . . . . 2 Heat Flow Errors 1 | . . . . . 1 Data Loss (major) 1 | . . . . . 1 Alerts 1 | . . . . . 1 Weapon Failures 1 | . . . . . 1 Overload Shots . | . . . . . . Overflow Damage 19 | . . 19 . . . Projectiles . | . . . . . . Explosions 19 | . . 19 . . . Melee . | . . . . . . Knockbacks . | . . . . . . Impact . | . . . . . . Kinetic . | . . . . . . Secondary . | . . . . . . Self-Inflicted Damage 117 | . . 28 . 83 6 Shots 5 | . . 1 . 4 . Rammed 9 | . 4 . . . 5 Targets Rammed 9 | . 4 . . . 5 Kicked . | . . . . . . Crushed . | . . . . . . Highest Temperature 297 | . 195 126 216 223 297 Average Temperature 77 | . 56 79 75 71 94 Received Heat Transfer 1026 | . 108 60 117 129 612 Siege Activations . | . . . . . . Martial Activations . | . . . . . . Shielding Activations . | . . . . . . Robots Disrupted . | . . . . . . Combat Hostiles . | . . . . . . Robots Corrupted . | . . . . . . Combat Hostiles . | . . . . . . Parts Fried 3 | . 1 . . . 2 Impact Corruptions . | . . . . . . Robots Melted . | . . . . . . Combat Hostiles . | . . . . . . Parts Melted 4 | . . . 3 . 1 Heat Transferred 1950 | . . 50 444 962 494 Parts Sabotaged . | . . . . . . Parts Stolen . | . . . . . . Parts Stripped . | . . . . . . Power Chain Reactions 2 | . . 1 . . 1 Alert | -11 -10 -10 -9 -9 -8 ------- Run | Yrd Mat Min Mat Sto Mat Maximum Alert Level 2 | . . . . 2 1 Low Security (%) 91 | 100 100 100 100 86 71 Level 1 7 | . . . . 11 28 Level 2 . | . . . . 1 . Level 3 . | . . . . . . Level 4 . | . . . . . . Level 5 . | . . . . . . High Security . | . . . . . . Max Security . | . . . . . . Peak Influence 420 | . 91 42 32 420 266 Initial 109 | . . 5 4 2 109 Average 69 | . 30 9 6 129 154 Influence Increases 1541 | . 255 52 125 789 320 Destroy 0b10 Robot/C 660 | . 120 40 60 320 120 Destroy 0b10 Robot/NC 105 | . 35 . 20 35 15 Destroy Leader 266 | . 26 10 34 142 54 Allied During Kill 23 | . . . 2 21 . Successful Hack 66 | . 12 . 8 30 16 Select Force Hacks 30 | . 30 . . . . Disable Machine 45 | . . . . 30 15 Destroy Structure 61 | . 17 2 1 31 10 Partial Spotted 105 | . . . . 75 30 Lose Combat Pursuer 180 | . 15 . . 105 60 Influence Decreases 1440 | . 241 54 130 535 480 Entered New Map 174 | . . 9 8 5 152 Time Decay 916 | . 241 35 122 320 198 Lost Part 110 | . . 10 . . 100 Lost Ally 240 | . . . . 210 30 Squads Dispatched 7 | . 2 . 2 2 1 Investigation 4 | . 1 . 2 . 1 Extermination . | . . . . . . Reinforcement 3 | . 1 . . 2 . Assault . | . . . . . . Garrison . | . . . . . . Intercept . | . . . . . . Searches Triggered . | . . . . . . Construction Impeded . | . . . . . . Haulers Reinforced . | . . . . . . Active Scanning Responses . | . . . . . . Cargo Convoy Interrupts . | . . . . . . Stealth | -11 -10 -10 -9 -9 -8 --------- Run | Yrd Mat Min Mat Sto Mat Distress Signals 5 | . . . . 2 3 Communications Jammed . | . . . . . . Distress Signals . | . . . . . . Times Spotted 63 | . 11 2 5 27 18 Peak Tracking Total 7 | . 3 2 1 7 7 Tactical Retreats 7 | . 1 . . 4 2 Traps | -11 -10 -10 -9 -9 -8 ------- Run | Yrd Mat Min Mat Sto Mat Traps Triggered . | . . . . . . Indirectly . | . . . . . . Trap Hack Attempts . | . . . . . . Triggered . | . . . . . . Disarmed . | . . . . . . Reprogrammed . | . . . . . . Reused . | . . . . . . Traps Extracted . | . . . . . . Installed . | . . . . . . Triggered . | . . . . . . Machines | -11 -10 -10 -9 -9 -8 ---------- Run | Yrd Mat Min Mat Sto Mat Machines Disabled 3 | . . . . 2 1 Max in Single Turn 1 | . . . . 1 1 Machines Repaired . | . . . . . . Machines Dismantled . | . . . . . . Machines Sabotaged . | . . . . . . Overloaded Fab Kills . | . . . . . . Hacking | -11 -10 -10 -9 -9 -8 --------- Run | Yrd Mat Min Mat Sto Mat Machines Accessed 20 | . 3 . 4 10 3 Terminals 15 | . 2 . 3 7 3 Fabricators . | . . . . . . Repair Stations 3 | . . . 1 2 . Recycling Units 2 | . 1 . . 1 . Scanalyzers . | . . . . . . Garrison Access . | . . . . . . Total Hacks 50 | . 5 . 11 28 6 Successful 28 | . 3 . 4 19 2 Failed 22 | . 2 . 7 9 4 Catastrophic 2 | . . . 2 . . Database Lockouts . | . . . . . . Manual 22 | . 6 . 3 7 6 Terminals 30 | . 4 . 7 13 6 Fabricators . | . . . . . . Repair Stations 16 | . . . 4 12 . Recycling Units 4 | . 1 . . 3 . Scanalyzers . | . . . . . . Garrison Access . | . . . . . . Terminal Hacks 9 | . 2 . 2 5 . Robot Analysis 2 | . 2 . . . . Open Door 3 | . . . . 3 . Level Access Points 1 | . . . 1 . . Alert Level 1 | . . . . 1 . Locate Traps 1 | . . . . 1 . Recall Investigation 1 | . . . 1 . . Fabricator Hacks . | . . . . . . Repair Station Hacks 14 | . . . 2 12 . Scan Component 7 | . . . 1 6 . Repair 7 | . . . 1 6 . Recycling Unit Hacks . | . . . . . . Scanalyzer . | . . . . . . Garrison Access Hacks . | . . . . . . Unauthorized Hacks 5 | . 1 . . 2 2 Terminals 4 | . . . . 2 2 Assimilate 4 | . . . . 2 2 Fabricators . | . . . . . . Repair Stations . | . . . . . . Recycling Units 1 | . 1 . . . . Tunnel 1 | . 1 . . . . Scanalyzers . | . . . . . . Garrison Access . | . . . . . . Data Cores Recovered . | . . . . . . Used . | . . . . . . Hacking Detections 14 | . 2 . 3 7 2 Full Trace Events 2 | . . . 1 . 1 Feedback Events . | . . . . . . Feedback Blocked . | . . . . . . Robot Schematics Acquired . | . . . . . . Robots Built . | . . . . . . Authchips . | . . . . . . Time . | . . . . . . Total Robot Build Rating . | . . . . . . Part Schematics Acquired . | . . . . . . Parts Built . | . . . . . . Authchips . | . . . . . . Time . | . . . . . . Total Part Build Rating . | . . . . . . Parts Repaired 7 | . . . 1 6 . Time 263 | . . . 26 237 . Parts Recycled . | . . . . . . Recycled Matter . | . . . . . . Retrieved Matter . | . . . . . . Retrieved Components . | . . . . . . Parts Scanalyzed . | . . . . . . Part Schematics Acquired . | . . . . . . Parts Damaged . | . . . . . . Bothacking | -11 -10 -10 -9 -9 -8 ------------ Run | Yrd Mat Min Mat Sto Mat Used RIF Installer . | . . . . . . Robots Hacked . | . . . . . . Non-combat . | . . . . . . Combat . | . . . . . . Robot Hacks Applied . | . . . . . . Relay Couplers Released . | . . . . . . Fabnet Peak Effective % . | . . . . . . Robots Rewired . | . . . . . . Allies Hacked . | . . . . . . Hacks Repelled . | . . . . . . Allies | -11 -10 -10 -9 -9 -8 -------- Run | Yrd Mat Min Mat Sto Mat Total Allies 14 | . . 1 . 11 2 Largest Group 10 | . . 1 1 10 2 Highest-Rated Group 88 | . . 31 31 88 36 Highest-Rated Ally 31 | . . 31 31 16 26 Total Orders 2 | . . . . . 2 FOLLOW 1 | . . . . . 1 EXPLORE 1 | . . . . . 1 Ally Attacks 45 | . . . 8 37 . Total Damage 418 | . . . 107 311 . Kills 3 | . . . 1 2 . Allies Corrupted . | . . . . . . Allies Melted . | . . . . . . Intel | -11 -10 -10 -9 -9 -8 ------- Run | Yrd Mat Min Mat Sto Mat Active Infowar (turns) 2063 | . 642 203 582 404 232 Sensors 2063 | . 642 203 582 404 232 Robot Analysis Total 2 | . 2 . . . . Derelict Logs Recovered . | . . . . . . Drone Launches 1 | . . . . . 1 Drone Recoveries . | . . . . . . Exploration | -11 -10 -10 -9 -9 -8 ------------- Run | Yrd Mat Min Mat Sto Mat Turns Passed 2763 | 79 704 203 582 792 403 Spaces Moved 2038 | 43 371 107 296 836 385 Core 1 | 1 . . . . . Treads 782 | 42 371 107 262 . . Legs . | . . . . . . Wheels . | . . . . . . Hover . | . . . . . . Flight 1255 | . . . 34 836 385 Fastest Speed 29 | 50 160 160 34 32 29 Average Speed 82 | 157 160 160 151 33 29 Slowest Speed 430 | 160 160 160 430 34 110 Overloaded Moves . | . . . . . . Propulsion Burnouts . | . . . . . . Robots Hopped 13 | . . . . 6 7 Potential Cave-ins 2 | . . . . 2 . Cave-ins Triggered 1 | . . . . . 1 Exploration Rate (%) 40 | 4 62 28 22 86 42 Regions Visited 5 Branch Regions 2 Pre-discovered Areas 1 | . 1 . . . . Known Exits Taken 1 | . . . . 1 . Unknown Exits Taken 4 | 1 1 1 1 . . Scrap Searched 1 | . . 1 . . . Spaces Dug 8 | . . . . 5 3 Terrain Destroyed 73 | . 17 2 . 43 11 Melee . | . . . . . . Projectile 5 | . . . . . 5 AOE 68 | . 17 2 . 43 6 Terrain Rammed . | . . . . . . Walls Destroyed . | . . . . . . Machines Disabled . | . . . . . . Actions | -11 -10 -10 -9 -9 -8 --------- Run | Yrd Mat Min Mat Sto Mat Total 2878 | 51 451 129 388 1251 608 Wait 604 | . 40 13 45 345 161 Move 2008 | 42 370 106 295 824 371 Hop 12 | . . . . 5 7 Pick Up 31 | 2 8 . 6 6 9 Fast Attach 22 | 5 4 . 3 7 3 Attach 9 | . 1 1 4 . 3 Detach 1 | . 1 . . . . Swap 42 | 2 4 2 6 16 12 Drop 26 | . 5 1 5 6 9 Fire 114 | . 14 6 24 42 28 Melee . | . . . . . . Ram 5 | . . . . . 5 Kick . | . . . . . . Crush 4 | . 4 . . . . Escape Stasis . | . . . . . . Rewire . | . . . . . . Trap . | . . . . . . Miscellaneous . | . . . . . . Route ------- -11/Scrapyard -10/Materials -10/Mines -9/Materials (discovered 4 exits: Mat x3 / *Sto) -9/Storage -8/Materials (discovered 1 exit: [*Fac]) History --------- Turn | Location | Event 40 | -11/Scrapyard | Discovered new exit (range 15) 80 | -11/Scrapyard | Entered Materials 326 | -10/Materials | Build established: Mutant 498 | -10/Materials | Discovered new exit (range 13) 784 | -10/Materials | Entered Mines 957 | -10/Mines | Discovered new exit (range 5) 961 | -10/Mines | Received a Mining Laser from a helpful Derelict 987 | -10/Mines | Entered Materials 987 | -9/Materials | Accompanied by 1 ally 987 | -9/Materials | Evolved 2 slots: Propulsion x1, Utility x1 1446 | -9/Materials | Repaired Lgt. Treads 1528 | -9/Materials | Discovered new exit (range 12) 1563 | -9/Materials | Identified exit to Materials 1569 | -9/Materials | Entered Storage 1795 | -9/Storage | Repaired Sml. Storage Unit 1916 | -9/Storage | Repaired Sensor Array 1998 | -9/Storage | Found Prototype Processor 1998 | -9/Storage | Identified Exp. Targeting Computer 2104 | -9/Storage | Repaired Imp. Flight Unit 2157 | -9/Storage | Repaired Imp. Flight Unit 2209 | -9/Storage | Repaired Imp. Flight Unit 2243 | -9/Storage | Repaired Weight Redist. System 2313 | -9/Storage | Discovered exit to Materials (range 16) 2320 | -9/Storage | Assisted by bots powering up and referring to "LRC-V3" 2361 | -9/Storage | Entered Materials 2361 | -8/Materials | Evolved 2 slots: Propulsion x1, Utility x1 2420 | -8/Materials | Lost 11 allies 2471 | -8/Materials | Discovered new exit (range 14) 2652 | -8/Materials | Build established: Sprinter 2715 | -8/Materials | Crushed by falling debris 2715 | -8/Materials | System corruption reached 10% 2739 | -8/Materials | Core integrity fell below 50% 2753 | -8/Materials | Core integrity fell below 20% 2764 | -8/Materials | Destroyed by G-50 Soldier with Heavy Laser Last Messages --------------- 02715_ System corrupted by crushing effect (+4). 02715_ Imp. Flight Unit destroyed. 02715_ System corrupted by crushing effect (+1). 02715_ Exp. Targeting Computer destroyed. 02715_ System corrupted by crushing effect (+2). 02715_ Weight Redist. System destroyed. 02715_ System corrupted by crushing effect (+4). 02725_ System corrupted: Prc. Beam Rifle failed to cycle. 02726_ Nuclear Core destroyed. 02729_ System corrupted: Substantial component data lost. 02729_ Imp. Sensor Array destroyed. 02732_ Imp. VTOL Module destroyed. 02739_ Prc. Beam Rifle destroyed. 02741_ Critical hit (Burn: +37). 02744_ System corrupted: Heat flow error (+112). 02754_ Slammed into G-50 Soldier. 02760_ UACVABCFVA FNQYEJF=O:ACW4RELTUFCJWL 02761_ Imp. Flight Unit destroyed. Map ----- +----------------------------------------------------+ | ????????????????????????????????????????????? | | ????????????????????????????????????????????? | | ????????????????????????????????????????????? | | ????????????????????????????????????????????? | | ????????????????????????????????????????????? | | ????????????????????????????????????????????? | | ????????????????????????????????????????????? | | ????????????????????????????????????????????? | | ????????????????????????????????????????????? | | ????????????????????????????????????????????? | | ????????????????????????????????????????????? | | ????????????????????????????????????????????? | | ????????????????????????????????????????????? | | ????????????????????????????????????????????? | | ????????????????????????????????????????????? | | ????????????????????????????????????????????? | | ????????????????????????????????????????????? | | ????????????????????????????????????????????? | | ????????????????????????????????????????????? | | ???????????????????????###########??????????? | | ???????????????????????# #??????????? | | ???????????????????????# g g #??????????? | | ???????????????????????# """ "" #??????????? | | ???????????????????????#g""" S"" #??????????? | | ?????????????????????###g""" "" #??????????? | | ?????????????????????# #g@g #??????????? | | ?????????????????????#######+#####??????????? | | ??????????????????????????# ########??????? | | ??????????????????????????# "! #??????? | | ??????????????????????????# # #??????? | | ??????????????????????????# #/// #??????? | | ???????????????????#??????# #/// ! #??????? | | ??????????????????## ##???# #// #??????? | | ????#+???????????# #### # ! #??????? | | ???? ???????????# ##+#####??????? | | ???? ???????????# #????????? | | ???? ??????????? #????????? | | ???? ???????????# ##### ]] #????????? | | ???? ????????????# #????# ]] #????????? | | ????# #???????????# #????# ]] #????????? | | ????# #???????????# #????# #????????? | | ????# #???????????# #????# #????????? | | ????# #??##???????# ######+##### #????????? | | ??### #### #?????# # ##? #????????? | | ??# ### ####### #% ##? #????????? | | ??# %#= *%/]### #????????? | | ??# !%/[! % ## ###??????? | | ??# [#!%] !### #??????? | | ??# ############ ## ]! ]"#?# +??????? | | ??## ##??????????# ## ][ T#?# #??????? | +----------------------------------------------------+ Best States ------------- Heat Dissipation 38 Energy Generation 14 Energy Capacity 280 Matter Stores 300 Matter Capacity 300 Sight Range 16 Robot Scan Range 15 Terrain Scan Density 10 Additional Mass Support 6 Armor Coverage 225 Evasion (%) 64 Targeting Accuracy 12 Recoil Reduction 3 Item Schematics ----------------- None Robot Schematics ------------------ None Fabricated ------------ Nothing Repaired ---------- Lgt. Treads | 7% | -9/Materials Sml. Storage Unit | 69% | -9/Storage Sensor Array | 30% | -9/Storage Imp. Flight Unit | 60% | -9/Storage Imp. Flight Unit | 70% | -9/Storage Imp. Flight Unit | 65% | -9/Storage Weight Redist. System | 31% | -9/Storage Alien Tech Used ----------------- None Achievements -------------- GoHome() Challenges ------------ None Game ------ Seed JunkFissionTurbovents Manual? 0 Play Time 00:42:27 Cumulative 23.6 hours Start 2025.05.26 @ 14:59:04 End 2025.05.26 @ 15:46:28 Sessions 3 Manual Loads 0 Difficulty Rogue Special Mode None Game No. 40 Rogue 40 Adventurer 0 Explorer 0 Win Type - Total 0 Types 0/0/0/0/0/0/0/0/0/0 Lore% 28 Gallery% 28 Achievement% 24 Wizard Run 0 Options --------- Layout 1 ASCII 0 Keyboard 0 Movement Numpad Keybinds 0 Fullscreen 1 Font 24/Smallcaps Map View 50x35 Zoom Use 0% Tactical HUD 1 Map Filters NONE Filters NONE Steam 1 RUN: 415790eb-94e4-45c7-8abc-c08ab7bdcea2